fUST/lending_fUST_20241020
["ID","MTS","AMOUNT","RATE_DAILY","PERIOD"]
[340545984,1729433445777,-382.38718668,0.00011873,2]
[340545985,1729433445792,-500.0,0.00011873,2]
[340545986,1729433445812,-500.0,0.00011873,2]
[340545987,1729433445832,-500.0,0.00011873,2]
[340545988,1729433445851,-159.0,0.00011873,2]
[340545989,1729433445865,-500.0,0.00011873,2]
[340545990,1729433445884,-500.0,0.00011873,2]
[340545991,1729433445900,-500.0,0.00011873,2]
[340545992,1729433445919,-500.0,0.00011873,2]
[340545993,1729433445933,-500.0,0.00011873,2]
[340545994,1729433445948,-150.07876394,0.00011873,2]
[340545995,1729433445964,-500.0,0.00011873,2]
[340545996,1729433445980,-573.40670331,0.00011873,2]
[340545997,1729433445995,-292578.502148,0.000119,2]
[340545998,1729433446011,-500.0,0.00011933,2]
[340545999,1729433446027,-3738.0,0.00011933,2]
[340546000,1729433446043,-150.0,0.00011933,2]
[340546001,1729433446059,-200.44069992,0.00011933,2]
[340546002,1729433446075,-158.70674225,0.00011933,2]
[340546003,1729433446092,-150.0,0.00011933,2]
[340546004,1729433446107,-500.0,0.00011933,2]
[340546005,1729433446123,-300.0,0.00011933,2]
[340546006,1729433446138,-500.0,0.00011933,2]
[340546007,1729433446157,-171.58340148,0.00011933,2]
[340546008,1729433446172,-150.05973029,0.00011933,2]
[340546009,1729433446187,-500.0,0.00011933,2]
[340546010,1729433446203,-150.0,0.00011933,2]
[340546011,1729433446219,-150.81983904,0.00011933,2]
[340546012,1729433446234,-3171.00527892,0.00011934,2]
[340546013,1729433446251,-112245.108418,0.00011949,2]
[340546014,1729433446266,-6823.09270659,0.00012,2]
[340546015,1729433446281,-172.743,0.0001204,2]
[340546016,1729433446296,-187.759,0.0001204,2]
[340546017,1729433446311,-150.0,0.0001204,2]
[340546019,1729433446326,-150.0,0.0001204,2]
[340546021,1729433446342,-153.103,0.0001204,2]
[340546025,1729433446360,-527.0,0.0001204,2]
[340546027,1729433446376,-1164.0,0.0001204,2]
[340546030,1729433446391,-1805.0,0.0001204,2]
[340546032,1729433446406,-210.6821207,0.000121,2]
[340546035,1729433446422,-153.0,0.000121,2]
[340546038,1729433446437,-238.9709537,0.000121,2]
[340546040,1729433446453,-210.6821207,0.000121,2]
[340546041,1729433446470,-250.20339731,0.00012147,2]
[340546043,1729433446485,-1000.0,0.00012147,2]
[340546044,1729433446500,-1000.0,0.00012147,2]
[340546045,1729433446515,-962.31344061,0.00012147,2]
[340546048,1729433446530,-1000.0,0.00012147,2]
[340546049,1729433446544,-185.22453849,0.00012147,2]
[340546050,1729433446560,-500.0,0.00012147,2]
[340546051,1729433446573,-513.97393213,0.00012147,2]
[340546052,1729433446591,-1000.0,0.00012147,2]
[340546053,1729433446607,-842.7610048,0.00012147,2]
[340546055,1729433446622,-629.59920093,0.00012147,2]
[340546058,1729433446637,-1000.0,0.00012147,2]
[340546060,1729433446653,-1000.0,0.00012147,2]
[340546062,1729433446668,-823.80879463,0.00012147,2]
[340546065,1729433446683,-709.97887489,0.00012147,2]
[340546066,1729433446697,-1000.0,0.00012147,2]
[340546067,1729433446712,-1000.0,0.00012147,2]
[340546069,1729433446728,-1000.0,0.00012147,2]
[340546070,1729433446743,-1000.0,0.00012147,2]
[340546071,1729433446758,-933.44914603,0.00012147,2]
[340546072,1729433446774,-1000.0,0.00012147,2]
[340546073,1729433446789,-1000.0,0.00012147,2]
[340546074,1729433446806,-10000.0,0.0001219,2]
[340546075,1729433446821,-205.235,0.00012213,2]
[340546076,1729433446842,-185.53566865,0.000123,2]
[340546077,1729433446863,-227.0,0.0001234,2]
[340546078,1729433446878,-238.077205,0.00012398,2]
[340546079,1729433446894,-154.307081,0.00012398,2]
[340546080,1729433446908,-300.0,0.000124,3]
[340546081,1729433446923,-150.0,0.000124,2]
[340546082,1729433446939,-500.0,0.00012476,2]
[340546083,1729433447107,-500.0,0.00012478,2]
[340546084,1729433447124,-500.0,0.00012478,2]
[340546085,1729433447134,-500.0,0.00012478,2]
[340546086,1729433447143,-500.0,0.00012481,2]
[340546087,1729433447152,-3738.0,0.00012481,2]
[340546088,1729433447162,-150.0,0.00012481,2]
[340546089,1729433447172,-185.82629241,0.00012481,2]
[340546090,1729433447181,-721.82936364,0.00012481,2]
[340546091,1729433447190,-300.0,0.00012481,2]
[340546092,1729433447199,-500.0,0.00012481,2]
[340546093,1729433447208,-500.0,0.00012481,2]
[340546094,1729433447217,-210.45575764,0.00012481,2]
[340546095,1729433447225,-4720.70377919,0.00012498,2]
[340546096,1729433447234,-8658.79116277,0.000125,2]
[340546097,1729433447679,-119341.20883723,0.000125,2]
[340546098,1729433447689,-3000.0,0.000125,2]
[340546099,1729433447698,-10134.38013361,0.000125,2]
[340546100,1729433447708,-2915.0,0.0001252,2]
[340546101,1729433447717,-500.0,0.0001253,2]
[340546102,1729433447726,-500.434787,0.0001253,2]
[340546103,1729433447735,-161.25472989,0.0001253,2]
[340546104,1729433447745,-1500.0,0.00012547,2]
[340546105,1729433447756,-1022.94044738,0.00012547,2]
[340546106,1729433447765,-1500.0,0.00012547,2]
[340546107,1729433447774,-1500.0,0.00012547,2]
[340546108,1729433447783,-1500.0,0.00012547,2]
[340546109,1729433447793,-1500.0,0.00012547,2]
[340546110,1729433447802,-1400.77784517,0.00012547,2]
[340546111,1729433447812,-1500.0,0.00012547,2]
[340546112,1729433447822,-1500.0,0.00012547,2]
[340546113,1729433447831,-1500.0,0.00012547,2]
[340546114,1729433447846,-1500.0,0.00012547,2]
[340546115,1729433447855,-1500.0,0.00012547,2]
[340546116,1729433447865,-238.077205,0.00012553,2]
[340546117,1729433447874,-154.307081,0.00012553,2]
[340546118,1729433447884,-5325.63263199,0.000126,2]
[340546119,1729433447894,-210.6821207,0.00012658,2]
[340546120,1729433447903,-320.7800959,0.00012658,2]
[340546121,1729433447912,-197.954298,0.00012702,2]
[340546122,1729433447920,-197.954298,0.00012702,2]
[340546123,1729433447930,-368.893929,0.00012702,2]
[340546124,1729433447939,-368.893929,0.00012702,2]
[340546125,1729433447949,-184.128535,0.00012702,2]
[340546126,1729433447958,-238.077205,0.00012707,2]
[340546127,1729433447968,-154.307081,0.00012707,2]
[340546128,1729433447977,-915.73208778,0.0001275,2]
[340546129,1729433447987,-244.34744008,0.00012752,2]
[340546130,1729433447996,-378.6188733,0.00012752,2]
[340546131,1729433448006,-1000.0,0.00012752,2]
[340546132,1729433448015,-200.0,0.0001285,2]
[340546133,1729433448028,-368.893929,0.00012861,2]
[340546134,1729433448037,-368.893929,0.00012861,2]
[340546135,1729433448046,-238.077205,0.00012862,2]
[340546136,1729433448056,-154.307081,0.00012862,2]
[340546137,1729433448065,-300.000001,0.00012888,2]
[340546138,1729433448075,-16005.91796,0.000129,2]
[340546139,1729433448085,-420.0,0.00012992,2]
[340546140,1729433448100,-431.7317333,0.00013,2]
[340546141,1729433448110,-502.31,0.00013,2]
[340546142,1729433448120,-500.0,0.00013,2]
[340546143,1729433448129,-150.112233,0.00013,2]
[340546144,1729433448139,-150.112233,0.00013,2]
[340546145,1729433448150,-150.112233,0.00013,2]
[340546146,1729433448159,-150.112233,0.00013,2]
[340546147,1729433448169,-150.112233,0.00013,2]
[340546148,1729433448179,-150.112233,0.00013,2]
[340546149,1729433448189,-1000.0,0.00013015,2]
[340546150,1729433448198,-570.0406604,0.00013015,2]
[340546151,1729433448209,-2000.0,0.00013015,2]
[340546152,1729433448219,-2000.0,0.00013015,2]
[340546153,1729433448228,-1516.07679057,0.00013015,2]
[340546154,1729433448239,-2000.0,0.00013015,2]
[340546155,1729433448249,-2000.0,0.00013015,2]
[340546156,1729433448258,-2000.0,0.00013015,2]
[340546157,1729433448268,-2000.0,0.00013015,2]
[340546158,1729433448277,-171.24626148,0.00013015,2]
[340546159,1729433448286,-420.0,0.00013016,2]
[340546160,1729433448433,-238.077205,0.00013017,2]
[340546161,1729433448443,-154.307081,0.00013017,2]
[340546162,1729433448453,-368.893929,0.00013019,2]
[340546163,1729433448463,-368.893929,0.00013019,2]
[340546164,1729433448474,-500.0,0.00013029,2]
[340546165,1729433448483,-3738.0,0.00013029,2]
[340546166,1729433448493,-250.22532984,0.00013029,2]
[340546167,1729433448502,-300.0,0.00013029,2]
[340546168,1729433448513,-500.0,0.00013029,2]
[340546169,1729433448523,-500.0,0.00013029,2]
[340546170,1729433448532,-153.63840875,0.00013153,2]
[340546171,1729433449810,-500.0,0.00011873,2]
[340546172,1729433449821,-1097.47644159,0.00012147,2]
[340546173,1729433449830,-1346.36159125,0.00013153,2]
[340546174,1729433449842,-368.893929,0.00013178,2]
[340546175,1729433449852,-368.893929,0.00013178,2]
[340546176,1729433449861,-3150.0,0.000132,2]
[340546177,1729433449871,-368.893929,0.00013337,2]
[340546178,1729433449880,-368.893929,0.00013337,2]
[340546179,1729433449889,-197.954298,0.00013337,2]
[340546180,1729433449899,-184.128535,0.00013337,2]
[340546181,1729433449909,-1128.53239856,0.00013365,2]
[340546182,1729433449921,-3911.91173119,0.00013365,2]
[340546184,1729433999131,174.97,0.00023,60]
[340546185,1729434019273,174.97,0.00023,60]
[340546186,1729434096301,1000.0,0.00023,60]
[340546243,1729434635211,-250.0,0.00010959,2]
[340546244,1729434635222,-300.0,0.00011,2]
[340546245,1729434635232,-194.338632,0.00011672,2]
[340546246,1729434635241,-194.338632,0.00011976,2]
[340546247,1729434635250,-200.0,0.00012,2]
[340546248,1729434635260,-300.0,0.00012135,2]
[340546249,1729434635269,-300.0,0.00012135,2]
[340546250,1729434635279,-4768.096,0.00012136,2]
[340546251,1729434635288,-527.0,0.00012136,2]
[340546252,1729434635297,-194.338632,0.0001228,2]
[340546253,1729434635306,-224.0,0.0001234,2]
[340546254,1729434635316,-508.6960104,0.00012635,2]
[340546255,1729434635325,-862.2681327,0.0001274,2]
[340546256,1729434635335,-203.0,0.0001285,2]
[340546257,1729434635344,-1366.09016152,0.00013076,2]
[340546258,1729434635353,-508.6960104,0.00013135,2]
[340546259,1729434635362,-300.0,0.000133,3]
[340546260,1729434635372,-164.188,0.00013316,2]
[340546261,1729434635381,-420.0,0.0001332,2]
[340546262,1729434635391,-420.0,0.00013349,2]
[340546263,1729434635400,-1211.41633292,0.00013364,2]
[340546264,1729434635410,-7194.13082121,0.00013365,2]
[340546265,1729434635419,-14453.85169267,0.00013381,2]
[340546266,1729434635428,-500.0,0.000134,2]
[340546267,1729434635438,-17554.42152642,0.000134,2]
[340546268,1729434635448,-883.83707616,0.000134,2]
[340546269,1729434635457,-217.71041716,0.00013415,7]
[340546270,1729434635466,-2500.0,0.0001348,2]
[340546271,1729434635476,-2500.0,0.00013481,2]
[340546272,1729434635486,-2500.0,0.00013481,2]
[340546273,1729434635496,-2500.0,0.00013489,2]
[340546274,1729434635506,-2500.0,0.00013489,2]
[340546275,1729434635515,-2500.0,0.00013489,2]
[340546276,1729434635525,-2500.0,0.0001349,2]
[340546277,1729434635535,-2500.0,0.0001349,2]
[340546278,1729434635544,-2500.0,0.0001349,2]
[340546279,1729434635553,-150.0,0.000135,2]
[340546280,1729434635563,-581.72153368,0.000135,2]
[340546281,1729434635572,-2038.36,0.000135,2]
[340546282,1729434635582,-305.51999321,0.00013559,2]
[340546283,1729434635591,-1000.0,0.00013568,2]
[340546284,1729434635600,-443.82820833,0.00013573,2]
[340546285,1729434635610,-300.0,0.00013573,2]
[340546286,1729434635621,-500.0,0.00013573,2]
[340546287,1729434635631,-500.0,0.00013573,2]
[340546288,1729434635640,-3271.0,0.00013573,2]
[340546289,1729434635650,-683.05329934,0.00013599,2]
[340546290,1729434635660,-150.112233,0.000136,2]
[340546291,1729434635670,-150.112233,0.000136,2]
[340546292,1729434635679,-150.112233,0.000136,2]
[340546293,1729434635688,-150.112233,0.000136,2]
[340546294,1729434635698,-508.6960104,0.00013635,2]
[340546295,1729434635708,-46162.74003834,0.00013658,2]
[340546347,1729434642951,-1805.0,0.00012136,2]
[340546348,1729434642962,-161.70980545,0.0001339,2]
[340546349,1729434642972,-1834.52,0.000135,2]
[340546350,1729434642982,-305.51999321,0.00013569,2]
[340546351,1729434642992,-305.51999321,0.00013579,2]
[340546352,1729434643001,-305.51999321,0.00013588,2]
[340546353,1729434643011,-244535.61223766,0.00013658,2]
[340546354,1729434643021,-179780.669749,0.00013658,2]
[340546355,1729434643031,-350.3106721,0.00013673,2]
[340546356,1729434643042,-500.0,0.00013673,2]
[340546357,1729434643052,-79902.5198884,0.00013688,2]
[340546358,1729434643063,-59926.8899163,0.00013689,2]
[340546359,1729434643078,-151.578528,0.00013698,2]
[340546360,1729434643088,-256.25469448,0.00013698,2]
[340546361,1729434643100,-611.55496795,0.00013698,2]
[340546362,1729434643111,-611.55496795,0.00013698,2]
[340546363,1729434643121,-611.55496795,0.00013698,2]
[340546364,1729434643134,-611.55496795,0.00013698,2]
[340546365,1729434643144,-611.55496795,0.00013698,2]
[340546366,1729434643153,-611.55496795,0.00013698,2]
[340546367,1729434643163,-611.55496795,0.00013698,2]
[340546368,1729434643172,-611.55496795,0.00013698,2]
[340546369,1729434643182,-611.55496795,0.00013698,2]
[340546370,1729434643192,-611.55496795,0.00013698,2]
[340546371,1729434643201,-611.55496795,0.00013698,2]
[340546372,1729434643210,-611.55496795,0.00013698,2]
[340546373,1729434643220,-611.55496795,0.00013698,2]
[340546374,1729434643231,-611.55496795,0.00013698,2]
[340546375,1729434643242,-611.55496795,0.00013698,2]
[340546376,1729434643252,-611.55496795,0.00013698,2]
[340546377,1729434643262,-611.55496795,0.00013698,2]
[340546378,1729434643273,-611.55496795,0.00013698,2]
[340546379,1729434643284,-611.55496795,0.00013698,2]
[340546380,1729434643294,-611.55496795,0.00013698,2]
[340546381,1729434643304,-611.55496795,0.00013698,2]
[340546382,1729434643314,-611.55496795,0.00013698,2]
[340546383,1729434643323,-611.55496795,0.00013698,2]
[340546384,1729434643334,-611.55496795,0.00013698,2]
[340546385,1729434643345,-611.55496795,0.00013698,2]
[340546386,1729434643354,-611.55496795,0.00013698,2]
[340546387,1729434643364,-611.55496795,0.00013698,2]
[340546388,1729434643375,-611.55496795,0.00013698,2]
[340546389,1729434643387,-611.55496795,0.00013698,2]
[340546390,1729434643397,-611.55496795,0.00013698,2]
[340546391,1729434643407,-611.55496795,0.00013698,2]
[340546392,1729434643417,-611.55496795,0.00013698,2]
[340546393,1729434643427,-611.55496795,0.00013698,2]
[340546394,1729434643437,-611.55496795,0.00013698,2]
[340546395,1729434643447,-611.55496795,0.00013698,2]
[340546396,1729434643457,-611.55496795,0.00013698,2]
[340546397,1729434643467,-611.55496795,0.00013698,2]
[340546398,1729434643477,-611.55496795,0.00013698,2]
[340546399,1729434643486,-611.55496795,0.00013698,2]
[340546400,1729434643496,-611.55496795,0.00013698,2]
[340546401,1729434643505,-611.55496795,0.00013698,2]
[340546402,1729434643515,-611.55496795,0.00013698,2]
[340546403,1729434643525,-611.55496795,0.00013698,2]
[340546404,1729434643534,-611.55496795,0.00013698,2]
[340546405,1729434643543,-611.55496795,0.00013698,2]
[340546406,1729434643552,-611.55496795,0.00013698,2]
[340546407,1729434643562,-611.55496795,0.00013698,2]
[340546408,1729434643572,-611.55496795,0.00013698,2]
[340546409,1729434643582,-611.55496795,0.00013698,2]
[340546410,1729434643591,-611.55496795,0.00013698,2]
[340546411,1729434643601,-611.55496795,0.00013698,2]
[340546412,1729434643610,-611.55496795,0.00013698,2]
[340546413,1729434643620,-611.55496795,0.00013698,2]
[340546414,1729434643632,-611.55496795,0.00013698,2]
[340546415,1729434643643,-611.55496795,0.00013698,2]
[340546416,1729434643653,-611.55496795,0.00013698,2]
[340546417,1729434643664,-611.55496795,0.00013698,2]
[340546418,1729434643675,-611.55496795,0.00013698,2]
[340546419,1729434643685,-611.55496795,0.00013698,2]
[340546420,1729434643694,-611.55496795,0.00013698,2]
[340546421,1729434643704,-611.55496795,0.00013698,2]
[340546422,1729434643714,-611.55496795,0.00013698,2]
[340546423,1729434643723,-611.55496795,0.00013698,2]
[340546424,1729434643733,-611.55496794,0.00013698,2]
[340546425,1729434643743,-611.55496794,0.00013698,2]
[340546426,1729434643752,-611.55496794,0.00013698,2]
[340546427,1729434643762,-611.55496794,0.00013698,2]
[340546428,1729434643772,-611.55496794,0.00013698,2]
[340546429,1729434643781,-611.55496794,0.00013698,2]
[340546430,1729434643791,-611.55496794,0.00013698,2]
[340546431,1729434643800,-611.55496794,0.00013698,2]
[340546432,1729434643809,-611.55496794,0.00013698,2]
[340546433,1729434643818,-611.55496794,0.00013698,2]
[340546434,1729434643827,-611.55496794,0.00013698,2]
[340546435,1729434643837,-611.55496794,0.00013698,2]
[340546436,1729434643846,-611.55496794,0.00013698,2]
[340546437,1729434643856,-611.55496794,0.00013698,2]
[340546438,1729434643865,-611.55496794,0.00013698,2]
[340546439,1729434643875,-611.55496794,0.00013698,2]
[340546440,1729434643886,-611.55496794,0.00013698,2]
[340546441,1729434643895,-611.55496794,0.00013698,2]
[340546442,1729434643903,-611.55496794,0.00013698,2]
[340546443,1729434643913,-611.55496794,0.00013698,2]
[340546444,1729434643923,-611.55496794,0.00013698,2]
[340546445,1729434643933,-611.55496794,0.00013698,2]
[340546446,1729434643942,-611.55496794,0.00013698,2]
[340546447,1729434643952,-611.55496794,0.00013698,2]
[340546448,1729434643961,-611.55496794,0.00013698,2]
[340546449,1729434643971,-611.55496794,0.00013698,2]
[340546450,1729434643980,-611.55496792,0.00013698,2]
[340546451,1729434643990,-375.0145399,0.00013698,2]
[340546452,1729434644000,-500.0,0.00013698,2]
[340546453,1729434644010,-453.37099643,0.00013698,2]
[340546454,1729434644019,-500.0,0.00013698,2]
[340546455,1729434644032,-500.0,0.00013698,2]
[340546456,1729434644048,-500.0,0.00013698,2]
[340546457,1729434644066,-500.0,0.00013698,2]
[340546458,1729434644079,-240.854386,0.00013698,2]
[340546459,1729434644094,-500.0,0.00013698,2]
[340546460,1729434644109,-500.0,0.00013698,2]
[340546461,1729434644124,-500.0,0.00013698,2]
[340546462,1729434644140,-500.0,0.00013698,2]
[340546463,1729434644155,-500.0,0.00013698,2]
[340546464,1729434644171,-447.3179901,0.00013698,2]
[340546465,1729434644184,-500.0,0.00013698,2]
[340546466,1729434644198,-500.0,0.00013698,2]
[340546467,1729434644214,-500.0,0.00013698,2]
[340546468,1729434644229,-500.0,0.00013698,2]
[340546469,1729434644241,-576.77622113,0.00013698,2]
[340546470,1729434644254,-500.0,0.00013698,2]
[340546471,1729434644269,-500.0,0.00013698,2]
[340546472,1729434644285,-270.83193379,0.00013698,2]
[340546473,1729434644301,-500.0,0.00013698,2]
[340546474,1729434644318,-991.07089229,0.00013698,2]
[340546475,1729434644333,-991.07089229,0.00013698,2]
[340546476,1729434644348,-991.07089229,0.00013698,2]
[340546477,1729434644360,-991.07089229,0.00013698,2]
[340546478,1729434644371,-991.07089229,0.00013698,2]
[340546479,1729434644389,-991.07089229,0.00013698,2]
[340546480,1729434644406,-991.07089229,0.00013698,2]
[340546481,1729434644419,-991.07089229,0.00013698,2]
[340546482,1729434644435,-991.07089229,0.00013698,2]
[340546483,1729434644450,-991.07089229,0.00013698,2]
[340546484,1729434644465,-991.07089229,0.00013698,2]
[340546485,1729434644477,-991.07089229,0.00013698,2]
[340546486,1729434644489,-991.07089229,0.00013698,2]
[340546487,1729434644502,-991.07089229,0.00013698,2]
[340546488,1729434644515,-991.07089229,0.00013698,2]
[340546489,1729434644528,-991.07089229,0.00013698,2]
[340546490,1729434644545,-991.07089229,0.00013698,2]
[340546491,1729434644557,-991.07089229,0.00013698,2]
[340546492,1729434644570,-991.07089229,0.00013698,2]
[340546493,1729434644583,-991.07089229,0.00013698,2]
[340546494,1729434644597,-500.0,0.00013698,2]
[340546495,1729434644609,-991.07089229,0.00013698,2]
[340546496,1729434644623,-991.07089229,0.00013698,2]
[340546497,1729434644637,-991.07089229,0.00013698,2]
[340546498,1729434644650,-991.07089229,0.00013698,2]
[340546499,1729434644662,-991.07089229,0.00013698,2]
[340546500,1729434644675,-991.07089229,0.00013698,2]
[340546501,1729434644688,-991.07089229,0.00013698,2]
[340546502,1729434644701,-991.07089229,0.00013698,2]
[340546503,1729434644714,-991.07089229,0.00013698,2]
[340546504,1729434644727,-991.07089229,0.00013698,2]
[340546505,1729434644740,-991.07089229,0.00013698,2]
[340546506,1729434644752,-991.07089229,0.00013698,2]
[340546507,1729434644764,-991.07089229,0.00013698,2]
[340546508,1729434644778,-991.07089229,0.00013698,2]
[340546509,1729434644793,-991.07089229,0.00013698,2]
[340546510,1729434644806,-991.07089229,0.00013698,2]
[340546511,1729434644821,-991.07089229,0.00013698,2]
[340546512,1729434644834,-991.07089229,0.00013698,2]
[340546513,1729434644847,-991.07089229,0.00013698,2]
[340546514,1729434644860,-991.07089229,0.00013698,2]
[340546515,1729434644874,-991.07089229,0.00013698,2]
[340546516,1729434644887,-991.07089229,0.00013698,2]
[340546517,1729434644900,-991.07089229,0.00013698,2]
[340546518,1729434644912,-991.07089229,0.00013698,2]
[340546519,1729434644926,-991.07089229,0.00013698,2]
[340546520,1729434644938,-500.0,0.00013698,2]
[340546521,1729434644951,-991.07089229,0.00013698,2]
[340546522,1729434644964,-991.07089229,0.00013698,2]
[340546523,1729434644977,-991.07089229,0.00013698,2]
[340546524,1729434644992,-991.07089229,0.00013698,2]
[340546525,1729434645005,-991.07089229,0.00013698,2]
[340546526,1729434645017,-991.07089229,0.00013698,2]
[340546527,1729434645030,-991.07089229,0.00013698,2]
[340546528,1729434645045,-991.07089229,0.00013698,2]
[340546529,1729434645060,-991.07089229,0.00013698,2]
[340546530,1729434645077,-991.07089229,0.00013698,2]
[340546531,1729434645090,-991.07089229,0.00013698,2]
[340546532,1729434645102,-991.07089229,0.00013698,2]
[340546533,1729434645115,-991.07089229,0.00013698,2]
[340546534,1729434645131,-500.0,0.00013698,2]
[340546535,1729434645147,-187.76317528,0.00013698,2]
[340546536,1729434645161,-500.0,0.00013698,2]
[340546537,1729434645174,-500.0,0.00013698,2]
[340546538,1729434645188,-500.0,0.00013698,2]
[340546539,1729434645202,-414.09301768,0.00013698,2]
[340546540,1729434645216,-500.0,0.00013698,2]
[340546541,1729434645228,-500.0,0.00013698,2]
[340546543,1729434645245,-500.0,0.00013698,2]
[340546544,1729434645259,-500.0,0.00013698,2]
[340546545,1729434645273,-500.0,0.00013698,2]
[340546546,1729434645286,-500.0,0.00013698,2]
[340546547,1729434645300,-500.0,0.00013698,2]
[340546548,1729434645314,-444.81043119,0.00013698,2]
[340546549,1729434645328,-500.0,0.00013698,2]
[340546550,1729434645341,-500.0,0.00013698,2]
[340546551,1729434645354,-500.0,0.00013698,2]
[340546552,1729434645369,-500.0,0.00013698,2]
[340546553,1729434645385,-975.58540959,0.00013698,2]
[340546554,1729434645399,-500.0,0.00013698,2]
[340546555,1729434645412,-975.58540959,0.00013698,2]
[340546556,1729434645425,-500.0,0.00013698,2]
[340546557,1729434645438,-975.58540959,0.00013698,2]
[340546559,1729434645451,-500.0,0.00013698,2]
[340546561,1729434645465,-975.58540959,0.00013698,2]
[340546562,1729434645478,-500.0,0.00013698,2]
[340546563,1729434645491,-975.58540959,0.00013698,2]
[340546564,1729434645503,-500.0,0.00013698,2]
[340546565,1729434645516,-975.58540959,0.00013698,2]
[340546566,1729434645530,-975.58540959,0.00013698,2]
[340546567,1729434645543,-500.0,0.00013698,2]
[340546568,1729434645556,-975.58540959,0.00013698,2]
[340546570,1729434645569,-500.0,0.00013698,2]
[340546571,1729434645581,-975.58540959,0.00013698,2]
[340546572,1729434645593,-500.0,0.00013698,2]
[340546573,1729434645606,-500.0,0.00013698,2]
[340546574,1729434645619,-975.58540959,0.00013698,2]
[340546575,1729434645632,-500.0,0.00013698,2]
[340546576,1729434645646,-975.58540959,0.00013698,2]
[340546577,1729434645660,-975.58540959,0.00013698,2]
[340546578,1729434645672,-975.58540959,0.00013698,2]
[340546579,1729434645684,-500.0,0.00013698,2]
[340546580,1729434645696,-975.58540959,0.00013698,2]
[340546581,1729434645709,-975.58540959,0.00013698,2]
[340546582,1729434645723,-500.0,0.00013698,2]
[340546584,1729434645736,-975.58540959,0.00013698,2]
[340546586,1729434645749,-975.58540959,0.00013698,2]
[340546588,1729434645763,-975.58540959,0.00013698,2]
[340546589,1729434645776,-975.58540959,0.00013698,2]
[340546590,1729434645788,-975.58540959,0.00013698,2]
[340546591,1729434645801,-975.58540959,0.00013698,2]
[340546592,1729434645815,-975.58540959,0.00013698,2]
[340546594,1729434645836,-975.58540959,0.00013698,2]
[340546595,1729434645853,-975.58540959,0.00013698,2]
[340546596,1729434645871,-975.58540959,0.00013698,2]
[340546597,1729434645888,-975.58540959,0.00013698,2]
[340546598,1729434645903,-975.58540959,0.00013698,2]
[340546599,1729434645919,-975.58540959,0.00013698,2]
[340546600,1729434645933,-975.58540959,0.00013698,2]
[340546601,1729434645948,-975.58540955,0.00013698,2]
[340546602,1729434645962,-975.58540955,0.00013698,2]
[340546603,1729434645976,-975.58540955,0.00013698,2]
[340546604,1729434645991,-353.7383933,0.00013698,2]
[340546605,1729434646006,-178.60125531,0.00013698,2]
[340546606,1729434646020,-167.84778591,0.00013698,2]
[340546607,1729434646034,-500.0,0.00013698,2]
[340546608,1729434646048,-500.0,0.00013698,2]
[340546609,1729434646061,-500.85082083,0.00013698,2]
[340546610,1729434646078,-370.51560138,0.00013698,2]
[340546611,1729434646092,-500.0,0.00013698,2]
[340546612,1729434646106,-500.0,0.00013698,2]
[340546613,1729434646120,-500.0,0.00013698,2]
[340546614,1729434646135,-500.0,0.00013698,2]
[340546615,1729434646148,-466.0,0.00013698,2]
[340546616,1729434646161,-500.0,0.00013698,2]
[340546617,1729434646174,-419.4868054,0.00013698,2]
[340546618,1729434646188,-151.0,0.00013698,2]
[340546619,1729434646203,-151.0,0.00013698,2]
[340546620,1729434646218,-158.833748,0.00013698,2]
[340546621,1729434646231,-151.0,0.00013698,2]
[340546622,1729434646245,-151.0,0.00013698,2]
[340546623,1729434646258,-151.0,0.00013698,2]
[340546624,1729434646271,-239.868,0.00013698,2]